fUSD/lending_fUSD_20260622
["ID","MTS","AMOUNT","RATE_DAILY","PERIOD"]
[426030780,1782121858000,-200.0,0.00027031,2]
[426030779,1782121858000,-448.84970867,0.0002703,2]
[426030782,1782121858000,-164.87057693,0.00027087,2]
[426030784,1782121858000,-1784.25,0.00027096,2]
[426030783,1782121858000,-164.87057693,0.00027087,2]
[426030789,1782121858000,-300.0,0.00027129,10]
[426030788,1782121858000,-184.138,0.00027125,15]
[426030787,1782121858000,-1524.146,0.00027125,15]
[426030778,1782121858000,-44330.9069104,0.0002703,2]
[426030785,1782121858000,-537.16622831,0.00027123,7]
[426030792,1782121858000,-672.63697964,0.00027129,2]
[426030791,1782121858000,-300.0,0.00027129,10]
[426030797,1782121858000,-49535.85663792,0.0002713,2]
[426030793,1782121858000,-300.0,0.00027129,10]
[426030794,1782121858000,-300.0,0.00027129,10]
[426030798,1782121858000,-650393.96764227,0.0002713,2]
[426030796,1782121858000,-279514.26418085,0.0002713,2]
[426030795,1782121858000,-300.0,0.00027129,10]
[426030749,1782121858000,-200.0,0.00026926,2]
[426030790,1782121858000,-300.0,0.00027129,10]
[426030775,1782121858000,-150.0,0.00026958,2]
[426030781,1782121858000,-9582.8790261,0.00027087,2]
[426030773,1782121858000,-593.0,0.00026926,2]
[426030752,1782121858000,-200.0,0.00026926,2]
[426030754,1782121858000,-200.0,0.00026926,2]
[426030757,1782121858000,-500.0,0.00026926,2]
[426030759,1782121858000,-500.0,0.00026926,2]
[426030756,1782121858000,-182.0,0.00026926,2]
[426030758,1782121858000,-500.0,0.00026926,2]
[426030777,1782121858000,-48597.36051709,0.0002703,2]
[426030767,1782121858000,-500.0,0.00026926,2]
[426030761,1782121858000,-500.0,0.00026926,2]
[426030762,1782121858000,-500.0,0.00026926,2]
[426030763,1782121858000,-500.0,0.00026926,2]
[426030760,1782121858000,-500.0,0.00026926,2]
[426030766,1782121858000,-500.0,0.00026926,2]
[426030764,1782121858000,-500.0,0.00026926,2]
[426030765,1782121858000,-500.0,0.00026926,2]
[426030770,1782121858000,-500.0,0.00026926,2]
[426030771,1782121858000,-500.0,0.00026926,2]
[426030768,1782121858000,-500.0,0.00026926,2]
[426030769,1782121858000,-500.0,0.00026926,2]
[426030772,1782121858000,-500.0,0.00026926,2]
[426030774,1782121858000,-151.0,0.00026951,2]
[426030837,1782121860000,-778.83,0.00027294,2]
[426030832,1782121860000,-500.0,0.00027232,2]
[426030830,1782121860000,-1595.89,0.00027232,2]
[426030834,1782121860000,-500.0,0.00027232,2]
[426030828,1782121860000,-781.55,0.00027232,2]
[426030831,1782121860000,-1595.89,0.00027232,2]
[426030829,1782121860000,-1595.89,0.00027232,2]
[426030827,1782121860000,-781.55,0.00027232,2]
[426030836,1782121860000,-289.0,0.00027275,2]
[426030833,1782121860000,-500.0,0.00027232,2]
[426030839,1782121860000,-1595.89,0.00027294,2]
[426030856,1782121860000,-537.90213611,0.00027396,2]
[426030840,1782121860000,-500.0,0.00027294,2]
[426030838,1782121860000,-781.55,0.00027294,2]
[426030842,1782121860000,-151.0,0.00027297,2]
[426030844,1782121860000,-460.690286,0.00027306,2]
[426030843,1782121860000,-564.42,0.000273,7]
[426030845,1782121860000,-168.36620518,0.0002731,2]
[426030846,1782121860000,-2000.0,0.00027329,2]
[426030848,1782121860000,-250.0,0.00027342,9]
[426030847,1782121860000,-10000.0,0.00027329,2]
[426030858,1782121860000,-537.90213611,0.00027396,2]
[426030826,1782121860000,-781.55,0.00027232,2]
[426030841,1782121860000,-10000.0,0.00027297,2]
[426030835,1782121860000,-573.95,0.00027251,7]
[426030804,1782121860000,-190.526948,0.0002713,2]
[426030825,1782121860000,-778.83,0.00027232,2]
[426030799,1782121860000,-1800699.07245221,0.0002713,2]
[426030800,1782121860000,-173.283087,0.0002713,2]
[426030801,1782121860000,-151.0,0.0002713,2]
[426030802,1782121860000,-39726.3736998,0.0002713,2]
[426030803,1782121860000,-151.0,0.0002713,2]
[426030805,1782121860000,-190.526948,0.0002713,2]
[426030806,1782121860000,-190.526948,0.0002713,2]
[426030807,1782121860000,-190.526948,0.0002713,2]
[426030809,1782121860000,-151.0,0.0002713,2]
[426030810,1782121860000,-151.0,0.0002713,2]
[426030808,1782121860000,-151.0,0.0002713,2]
[426030824,1782121860000,-778.83,0.00027232,2]
[426030811,1782121860000,-151.0,0.0002713,2]
[426030814,1782121860000,-3145.3893723,0.0002713,2]
[426030815,1782121860000,-8586.76334058,0.0002713,10]
[426030812,1782121860000,-3608.48760108,0.0002713,2]
[426030816,1782121860000,-151.0,0.00027133,2]
[426030822,1782121860000,-200.0,0.00027226,2]
[426030820,1782121860000,-500.0,0.00027195,2]
[426030819,1782121860000,-1595.89,0.00027195,2]
[426030817,1782121860000,-778.83,0.00027195,2]
[426030823,1782121860000,-778.83,0.00027232,2]
[426030821,1782121860000,-2009.0,0.000272,2]
[426030818,1782121860000,-781.55,0.00027195,2]
[426030813,1782121860000,-454073.66702923,0.0002713,2]
[426030851,1782121860000,-231.0,0.00027349,2]
[426030859,1782121860000,-537.90213611,0.00027396,2]
[426030852,1782121860000,-2497.475,0.00027356,2]
[426030880,1782121860000,-781.55,0.00027396,2]
[426030881,1782121860000,-781.65,0.00027396,2]
[426030885,1782121860000,-1595.89,0.00027396,2]
[426030887,1782121860000,-588.19248457,0.00027396,2]
[426030888,1782121860000,-156.24918832,0.00027396,2]
[426030889,1782121860000,-500.0,0.00027397,2]
[426030892,1782121860000,-501.81883181,0.00027397,2]
[426030890,1782121860000,-503.4410674,0.00027397,2]
[426030893,1782121860000,-229.38366513,0.00027397,2]
[426030886,1782121860000,-1596.09596772,0.00027396,2]
[426030897,1782121860000,-504.90785853,0.00027397,2]
[426030882,1782121860000,-1595.89,0.00027396,2]
[426030891,1782121860000,-500.0,0.00027397,2]
[426030895,1782121860000,-500.0,0.00027397,2]
[426030894,1782121860000,-13376.006111,0.00027397,2]
[426030899,1782121860000,-500.0,0.00027397,2]
[426030898,1782121860000,-500.0,0.00027397,2]
[426030900,1782121860000,-500.0,0.00027397,2]
[426030901,1782121860000,-500.0,0.00027397,2]
[426030906,1782121860000,-500.0,0.00027397,2]
[426030902,1782121860000,-501.30646369,0.00027397,2]
[426030903,1782121860000,-500.0,0.00027397,2]
[426030907,1782121860000,-500.0,0.00027397,2]
[426030905,1782121860000,-500.0,0.00027397,2]
[426030896,1782121860000,-500.0,0.00027397,2]
[426030883,1782121860000,-1595.89,0.00027396,2]
[426030904,1782121860000,-500.0,0.00027397,2]
[426030878,1782121860000,-781.55,0.00027396,2]
[426030879,1782121860000,-781.55,0.00027396,2]
[426030855,1782121860000,-537.90213611,0.00027396,2]
[426030854,1782121860000,-537.90213611,0.00027396,2]
[426030849,1782121860000,-250.0,0.00027342,9]
[426030853,1782121860000,-263.124355,0.00027394,7]
[426030857,1782121860000,-537.90213611,0.00027396,2]
[426030869,1782121860000,-1000.0,0.00027396,2]
[426030862,1782121860000,-1000.0,0.00027396,2]
[426030871,1782121860000,-783.82906622,0.00027396,2]
[426030863,1782121860000,-1000.0,0.00027396,2]
[426030867,1782121860000,-1000.0,0.00027396,2]
[426030870,1782121860000,-1000.0,0.00027396,2]
[426030850,1782121860000,-250.02,0.00027342,9]
[426030864,1782121860000,-1000.0,0.00027396,2]
[426030861,1782121860000,-537.9021361,0.00027396,2]
[426030884,1782121860000,-1595.89,0.00027396,2]
[426030877,1782121860000,-781.55,0.00027396,2]
[426030875,1782121860000,-778.83,0.00027396,2]
[426030874,1782121860000,-778.83,0.00027396,2]
[426030876,1782121860000,-778.85671723,0.00027396,2]
[426030866,1782121860000,-1000.0,0.00027396,2]
[426030860,1782121860000,-537.90213611,0.00027396,2]
[426030865,1782121860000,-1000.0,0.00027396,2]
[426030868,1782121860000,-1000.0,0.00027396,2]
[426030872,1782121860000,-778.83,0.00027396,2]
[426030873,1782121860000,-778.83,0.00027396,2]
[426030933,1782121861000,-500.0,0.00027397,2]
[426030936,1782121861000,-500.0,0.00027397,2]
[426030940,1782121861000,-500.0,0.00027397,2]
[426030939,1782121861000,-616.5788562,0.00027397,2]
[426030935,1782121861000,-500.0,0.00027397,2]
[426030945,1782121861000,-500.0,0.00027397,2]
[426030944,1782121861000,-500.0,0.00027397,2]
[426030943,1782121861000,-500.0,0.00027397,2]
[426030938,1782121861000,-500.0,0.00027397,2]
[426030951,1782121861000,-500.0,0.00027397,2]
[426030937,1782121861000,-500.0,0.00027397,2]
[426030942,1782121861000,-500.0,0.00027397,2]
[426030946,1782121861000,-503.95241299,0.00027397,2]
[426030948,1782121861000,-500.0,0.00027397,2]
[426030929,1782121861000,-500.0,0.00027397,2]
[426030950,1782121861000,-502.5070789,0.00027397,2]
[426030947,1782121861000,-363.75371237,0.00027397,2]
[426030956,1782121861000,-500.0,0.00027397,2]
[426030957,1782121861000,-500.0,0.00027397,2]
[426030954,1782121861000,-500.0,0.00027397,2]
[426030949,1782121861000,-500.0,0.00027397,2]
[426030941,1782121861000,-500.0,0.00027397,2]
[426030930,1782121861000,-500.0,0.00027397,2]
[426030925,1782121861000,-500.0,0.00027397,2]
[426030924,1782121861000,-503.07549493,0.00027397,2]
[426030955,1782121861000,-500.0,0.00027397,2]
[426030908,1782121861000,-500.0,0.00027397,2]
[426030910,1782121861000,-500.0,0.00027397,2]
[426030909,1782121861000,-500.0,0.00027397,2]
[426030911,1782121861000,-500.0,0.00027397,2]
[426030913,1782121861000,-500.0,0.00027397,2]
[426030915,1782121861000,-500.0,0.00027397,2]
[426030914,1782121861000,-500.0,0.00027397,2]
[426030916,1782121861000,-500.0,0.00027397,2]
[426030912,1782121861000,-500.0,0.00027397,2]
[426030917,1782121861000,-500.0,0.00027397,2]
[426030921,1782121861000,-500.0,0.00027397,2]
[426030922,1782121861000,-500.0,0.00027397,2]
[426030919,1782121861000,-502.00539994,0.00027397,2]
[426030920,1782121861000,-500.0,0.00027397,2]
[426030923,1782121861000,-500.0,0.00027397,2]
[426030934,1782121861000,-1120.85,0.00027397,2]
[426030926,1782121861000,-500.0,0.00027397,2]
[426030931,1782121861000,-500.0,0.00027397,2]
[426030927,1782121861000,-500.0,0.00027397,2]
[426030928,1782121861000,-725243.3517053,0.00027397,2]
[426030932,1782121861000,-200.0,0.00027397,2]
[426030918,1782121861000,-500.0,0.00027397,2]
[426030953,1782121861000,-517.09722655,0.00027397,2]
[426030959,1782121861000,-563.25903341,0.00027397,2]
[426030987,1782121861000,-500.0,0.00027397,2]
[426030986,1782121861000,-491.97783583,0.00027397,2]
[426030995,1782121861000,-500.0,0.00027397,2]
[426030996,1782121861000,-500.0,0.00027397,2]
[426030985,1782121861000,-508.64459398,0.00027397,2]
[426030989,1782121861000,-500.0,0.00027397,2]
[426030988,1782121861000,-500.0,0.00027397,2]
[426030991,1782121861000,-509.38372195,0.00027397,2]
[426030992,1782121861000,-500.0,0.00027397,2]
[426030993,1782121861000,-654.7,0.00027397,2]
[426030990,1782121861000,-1183.04,0.00027397,2]
[426030997,1782121861000,-500.0,0.00027397,2]
[426030998,1782121861000,-500.0,0.00027397,2]
[426031000,1782121861000,-500.0,0.00027397,2]
[426030999,1782121861000,-1000.0,0.00027397,2]
[426031003,1782121861000,-500.0,0.00027397,2]
[426031001,1782121861000,-500.0,0.00027397,2]
[426031004,1782121861000,-804.78,0.00027397,2]
[426031005,1782121861000,-500.0,0.00027397,2]
[426031002,1782121861000,-530.6,0.00027397,2]
[426030952,1782121861000,-504.25282784,0.00027397,2]
[426030984,1782121861000,-515.7442721,0.00027397,2]
[426030982,1782121861000,-500.0,0.00027397,2]
[426030994,1782121861000,-500.0,0.00027397,2]
[426030976,1782121861000,-500.0,0.00027397,2]
[426030970,1782121861000,-502.3735855,0.00027397,2]
[426030983,1782121861000,-500.0,0.00027397,2]
[426030958,1782121861000,-500.0,0.00027397,2]
[426030969,1782121861000,-498.44195603,0.00027397,2]
[426030960,1782121861000,-500.0,0.00027397,2]
[426030965,1782121861000,-500.0,0.00027397,2]
[426030962,1782121861000,-518.18831793,0.00027397,2]
[426030961,1782121861000,-620.35177554,0.00027397,2]
[426030964,1782121861000,-506.13710691,0.00027397,2]
[426030967,1782121861000,-537.14421952,0.00027397,2]
[426030966,1782121861000,-500.0,0.00027397,2]
[426030963,1782121861000,-500.0,0.00027397,2]
[426030968,1782121861000,-500.0,0.00027397,2]
[426030981,1782121861000,-500.0,0.00027397,2]
[426030972,1782121861000,-504.08863588,0.00027397,2]
[426030978,1782121861000,-500.0,0.00027397,2]
[426030979,1782121861000,-502.50936016,0.00027397,2]
[426030980,1782121861000,-500.0,0.00027397,2]
[426030977,1782121861000,-508.19606798,0.00027397,2]
[426030975,1782121861000,-749.32,0.00027397,2]
[426030973,1782121861000,-624.1112876,0.00027397,2]
[426030971,1782121861000,-500.0,0.00027397,2]
[426030974,1782121861000,-500.0,0.00027397,2]
[426031045,1782121862000,-500.0,0.00027397,2]
[426031039,1782121862000,-500.0,0.00027397,2]
[426031036,1782121862000,-500.0,0.00027397,2]
[426031041,1782121862000,-500.0,0.00027397,2]
[426031034,1782121862000,-500.0,0.00027397,2]
[426031038,1782121862000,-500.0,0.00027397,2]
[426031031,1782121862000,-500.0,0.00027397,2]
[426031040,1782121862000,-500.0,0.00027397,2]
[426031043,1782121862000,-500.0,0.00027397,2]
[426031042,1782121862000,-500.0,0.00027397,2]
[426031044,1782121862000,-500.0,0.00027397,2]
[426031047,1782121862000,-500.0,0.00027397,2]
[426031061,1782121862000,-500.0,0.00027397,2]
[426031048,1782121862000,-500.0,0.00027397,2]
[426031049,1782121862000,-500.0,0.00027397,2]
[426031050,1782121862000,-500.32037112,0.00027397,2]
[426031051,1782121862000,-500.0,0.00027397,2]
[426031052,1782121862000,-500.0,0.00027397,2]
[426031056,1782121862000,-500.0,0.00027397,2]
[426031059,1782121862000,-500.0,0.00027397,2]
[426031057,1782121862000,-500.0,0.00027397,2]
[426031055,1782121862000,-539.94,0.00027397,2]
[426031054,1782121862000,-500.0,0.00027397,2]
[426031035,1782121862000,-500.0,0.00027397,2]
[426031046,1782121862000,-500.0,0.00027397,2]
[426031037,1782121862000,-475.8032974,0.00027397,2]
[426031009,1782121862000,-500.0,0.00027397,2]
[426031033,1782121862000,-500.0,0.00027397,2]
[426031062,1782121862000,-500.0,0.00027397,2]
[426031007,1782121862000,-500.0,0.00027397,2]
[426031006,1782121862000,-500.0,0.00027397,2]
[426031010,1782121862000,-500.0,0.00027397,2]
[426031013,1782121862000,-500.0,0.00027397,2]
[426031011,1782121862000,-528.37030426,0.00027397,2]
[426031008,1782121862000,-500.0,0.00027397,2]
[426031012,1782121862000,-500.0,0.00027397,2]
[426031019,1782121862000,-500.0,0.00027397,2]
[426031015,1782121862000,-508.15438752,0.00027397,2]
[426031017,1782121862000,-500.0,0.00027397,2]
[426031018,1782121862000,-422.05140896,0.00027397,2]
[426031014,1782121862000,-539.27268608,0.00027397,2]
[426031016,1782121862000,-500.0,0.00027397,2]
[426031020,1782121862000,-500.0,0.00027397,2]
[426031021,1782121862000,-500.0,0.00027397,2]
[426031023,1782121862000,-505.05979699,0.00027397,2]
[426031022,1782121862000,-500.0,0.00027397,2]
[426031026,1782121862000,-500.0,0.00027397,2]
[426031029,1782121862000,-500.0,0.00027397,2]
[426031027,1782121862000,-573.14304458,0.00027397,2]
[426031025,1782121862000,-500.0,0.00027397,2]
[426031024,1782121862000,-500.0,0.00027397,2]
[426031028,1782121862000,-500.0,0.00027397,2]
[426031032,1782121862000,-235.10050302,0.00027397,2]
[426031030,1782121862000,-500.0,0.00027397,2]
[426031058,1782121862000,-500.0,0.00027397,2]
[426031066,1782121862000,-595.08,0.00027397,2]
[426031053,1782121862000,-500.0,0.00027397,2]
[426031086,1782121862000,-500.0,0.00027397,2]
[426031091,1782121862000,-500.0,0.00027397,2]
[426031090,1782121862000,-500.0,0.00027397,2]
[426031096,1782121862000,-536.72490144,0.00027397,2]
[426031106,1782121862000,-536.80854169,0.00027397,2]
[426031107,1782121862000,-500.0,0.00027397,2]
[426031099,1782121862000,-500.0,0.00027397,2]
[426031095,1782121862000,-503.42556179,0.00027397,2]
[426031097,1782121862000,-500.0,0.00027397,2]
[426031102,1782121862000,-500.0,0.00027397,2]
[426031100,1782121862000,-500.0,0.00027397,2]
[426031092,1782121862000,-623.17683847,0.00027397,2]
[426031101,1782121862000,-500.0,0.00027397,2]
[426031105,1782121862000,-500.0,0.00027397,2]
[426031098,1782121862000,-500.0,0.00027397,2]
[426031104,1782121862000,-500.0,0.00027397,2]
[426031109,1782121862000,-500.0,0.00027397,2]
[426031110,1782121862000,-500.0,0.00027397,2]
[426031108,1782121862000,-500.0,0.00027397,2]
[426031111,1782121862000,-472.57310179,0.00027397,2]
[426031114,1782121862000,-501.76148626,0.00027397,2]
[426031112,1782121862000,-504.49520957,0.00027397,2]
[426031116,1782121862000,-500.0,0.00027397,2]
[426031063,1782121862000,-500.0,0.00027397,2]
[426031103,1782121862000,-500.0,0.00027397,2]
[426031085,1782121862000,-500.0,0.00027397,2]
[426031115,1782121862000,-500.0,0.00027397,2]
[426031093,1782121862000,-581.6860851,0.00027397,2]
[426031087,1782121862000,-500.0,0.00027397,2]
[426031060,1782121862000,-500.0,0.00027397,2]
[426031064,1782121862000,-500.0,0.00027397,2]
[426031074,1782121862000,-500.0,0.00027397,2]
[426031069,1782121862000,-500.0,0.00027397,2]
[426031067,1782121862000,-500.0,0.00027397,2]
[426031113,1782121862000,-500.0,0.00027397,2]
[426031065,1782121862000,-500.0,0.00027397,2]
[426031070,1782121862000,-500.0,0.00027397,2]
[426031072,1782121862000,-503.32066165,0.00027397,2]
[426031068,1782121862000,-500.0,0.00027397,2]
[426031071,1782121862000,-500.0,0.00027397,2]
[426031073,1782121862000,-506.5193185,0.00027397,2]
[426031079,1782121862000,-503.07034607,0.00027397,2]
[426031075,1782121862000,-500.0,0.00027397,2]
[426031088,1782121862000,-500.0,0.00027397,2]
[426031089,1782121862000,-500.0,0.00027397,2]
[426031084,1782121862000,-500.0,0.00027397,2]
[426031083,1782121862000,-500.0,0.00027397,2]
[426031094,1782121862000,-500.0,0.00027397,2]
[426031081,1782121862000,-500.0,0.00027397,2]
[426031077,1782121862000,-579.06,0.00027397,2]
[426031080,1782121862000,-500.0,0.00027397,2]
[426031078,1782121862000,-816.43,0.00027397,2]
[426031082,1782121862000,-503.54854396,0.00027397,2]
[426031076,1782121862000,-500.0,0.00027397,2]
[426031143,1782121863000,-500.0,0.00027397,2]
[426031148,1782121863000,-500.0,0.00027397,2]
[426031156,1782121863000,-500.0,0.00027397,2]
[426031147,1782121863000,-500.0,0.00027397,2]
[426031155,1782121863000,-500.0,0.00027397,2]
[426031152,1782121863000,-500.0,0.00027397,2]
[426031145,1782121863000,-500.0,0.00027397,2]
[426031150,1782121863000,-500.0,0.00027397,2]
[426031151,1782121863000,-500.0,0.00027397,2]
[426031154,1782121863000,-500.0,0.00027397,2]
[426031163,1782121863000,-500.0,0.00027397,2]
[426031149,1782121863000,-500.0,0.00027397,2]
[426031153,1782121863000,-502.44613289,0.00027397,2]
[426031159,1782121863000,-500.0,0.00027397,2]
[426031157,1782121863000,-500.0,0.00027397,2]
[426031162,1782121863000,-500.0,0.00027397,2]
[426031160,1782121863000,-500.0,0.00027397,2]
[426031168,1782121863000,-500.0,0.00027397,2]
[426031161,1782121863000,-500.0,0.00027397,2]
[426031167,1782121863000,-500.0,0.00027397,2]
[426031144,1782121863000,-500.0,0.00027397,2]
[426031158,1782121863000,-500.0,0.00027397,2]
[426031146,1782121863000,-500.0,0.00027397,2]
[426031138,1782121863000,-500.0,0.00027397,2]
[426031126,1782121863000,-500.0,0.00027397,2]
[426031140,1782121863000,-521.05,0.00027397,2]
[426031166,1782121863000,-500.0,0.00027397,2]
[426031119,1782121863000,-500.0,0.00027397,2]
[426031118,1782121863000,-500.0,0.00027397,2]
[426031117,1782121863000,-502.63737791,0.00027397,2]
[426031131,1782121863000,-540.80677564,0.00027397,2]
[426031121,1782121863000,-500.0,0.00027397,2]
[426031120,1782121863000,-606.29,0.00027397,2]
[426031122,1782121863000,-500.0,0.00027397,2]
[426031123,1782121863000,-500.0,0.00027397,2]
[426031124,1782121863000,-500.0,0.00027397,2]
[426031128,1782121863000,-500.0,0.00027397,2]
[426031125,1782121863000,-500.0,0.00027397,2]
[426031130,1782121863000,-500.0,0.00027397,2]
[426031129,1782121863000,-500.0,0.00027397,2]
[426031127,1782121863000,-500.0,0.00027397,2]
[426031132,1782121863000,-500.0,0.00027397,2]
[426031134,1782121863000,-500.0,0.00027397,2]
[426031136,1782121863000,-500.0,0.00027397,2]
[426031135,1782121863000,-500.0,0.00027397,2]
[426031133,1782121863000,-500.0,0.00027397,2]
[426031141,1782121863000,-500.0,0.00027397,2]
[426031139,1782121863000,-500.0,0.00027397,2]
[426031137,1782121863000,-500.0,0.00027397,2]
[426031142,1782121863000,-500.0,0.00027397,2]
[426031164,1782121863000,-500.0,0.00027397,2]
[426031165,1782121863000,-500.0,0.00027397,2]
[426031170,1782121863000,-501.26,0.00027397,2]
[426031194,1782121863000,-500.0,0.00027397,2]
[426031195,1782121863000,-500.0,0.00027397,2]
[426031199,1782121863000,-500.0,0.00027397,2]
[426031198,1782121863000,-509.08364612,0.00027397,2]
[426031197,1782121863000,-500.0,0.00027397,2]
[426031204,1782121863000,-500.0,0.00027397,2]
[426031203,1782121863000,-708.48,0.00027397,2]
[426031205,1782121863000,-500.0,0.00027397,2]
[426031202,1782121863000,-500.0,0.00027397,2]
[426031212,1782121863000,-500.0,0.00027397,2]
[426031209,1782121863000,-500.0,0.00027397,2]
[426031211,1782121863000,-500.0,0.00027397,2]
[426031207,1782121863000,-500.0,0.00027397,2]
[426031208,1782121863000,-500.0,0.00027397,2]
[426031210,1782121863000,-530.67172327,0.00027397,2]
[426031213,1782121863000,-500.0,0.00027397,2]
[426031216,1782121863000,-500.0,0.00027397,2]
[426031218,1782121863000,-154.141279,0.00027397,2]
[426031214,1782121863000,-500.0,0.00027397,2]
[426031220,1782121863000,-500.0,0.00027397,2]
[426031219,1782121863000,-500.0,0.00027397,2]
[426031217,1782121863000,-500.0,0.00027397,2]
[426031215,1782121863000,-500.0,0.00027397,2]
[426031200,1782121863000,-500.0,0.00027397,2]
[426031201,1782121863000,-571.32,0.00027397,2]
[426031206,1782121863000,-552.91868957,0.00027397,2]
[426031193,1782121863000,-500.0,0.00027397,2]
[426031196,1782121863000,-886.35,0.00027397,2]
[426031169,1782121863000,-553.25,0.00027397,2]
[426031173,1782121863000,-505.94731476,0.00027397,2]
[426031172,1782121863000,-500.0,0.00027397,2]
[426031171,1782121863000,-700.0,0.00027397,2]
[426031175,1782121863000,-500.0,0.00027397,2]
[426031179,1782121863000,-500.0,0.00027397,2]
[426031174,1782121863000,-500.0,0.00027397,2]
[426031178,1782121863000,-500.0,0.00027397,2]
[426031176,1782121863000,-500.0,0.00027397,2]
[426031181,1782121863000,-500.0,0.00027397,2]
[426031182,1782121863000,-500.0,0.00027397,2]
[426031177,1782121863000,-500.0,0.00027397,2]
[426031191,1782121863000,-500.0,0.00027397,2]
[426031184,1782121863000,-501.94680871,0.00027397,2]
[426031185,1782121863000,-500.0,0.00027397,2]
[426031183,1782121863000,-500.0,0.00027397,2]
[426031190,1782121863000,-500.0,0.00027397,2]
[426031188,1782121863000,-500.0,0.00027397,2]
[426031187,1782121863000,-510.35578504,0.00027397,2]
[426031189,1782121863000,-500.0,0.00027397,2]
[426031186,1782121863000,-500.0,0.00027397,2]
[426031192,1782121863000,-611.35,0.00027397,2]
[426031180,1782121863000,-500.0,0.00027397,2]
[426031254,1782121864000,-500.0,0.00027397,2]
[426031256,1782121864000,-500.0,0.00027397,2]
[426031255,1782121864000,-500.0,0.00027397,2]
[426031257,1782121864000,-500.0,0.00027397,2]
[426031253,1782121864000,-575.02532687,0.00027397,2]
[426031250,1782121864000,-500.0,0.00027397,2]
[426031251,1782121864000,-500.0,0.00027397,2]
[426031247,1782121864000,-500.0,0.00027397,2]
[426031252,1782121864000,-511.88971185,0.00027397,2]
[426031264,1782121864000,-500.0,0.00027397,2]
[426031249,1782121864000,-500.0,0.00027397,2]
[426031261,1782121864000,-500.0,0.00027397,2]
[426031277,1782121864000,-518.58667628,0.00027397,2]
[426031260,1782121864000,-393.03672426,0.00027397,2]
[426031259,1782121864000,-545.8955684,0.00027397,2]
[426031263,1782121864000,-500.0,0.00027397,2]
[426031267,1782121864000,-500.0,0.00027397,2]
[426031266,1782121864000,-500.0,0.00027397,2]
[426031265,1782121864000,-503.65753489,0.00027397,2]
[426031269,1782121864000,-500.0,0.00027397,2]
[426031270,1782121864000,-500.0,0.00027397,2]
[426031268,1782121864000,-500.0,0.00027397,2]
[426031272,1782121864000,-500.0,0.00027397,2]
[426031248,1782121864000,-500.0,0.00027397,2]
[426031262,1782121864000,-500.0,0.00027397,2]
[426031258,1782121864000,-500.0,0.00027397,2]
[426031222,1782121864000,-500.0,0.00027397,2]
[426031245,1782121864000,-721.79,0.00027397,2]
[426031278,1782121864000,-500.50446447,0.00027397,2]
[426031223,1782121864000,-638.73711037,0.00027397,2]
[426031221,1782121864000,-592.73,0.00027397,2]
[426031225,1782121864000,-500.0,0.00027397,2]
[426031224,1782121864000,-500.0,0.00027397,2]
[426031226,1782121864000,-500.0,0.00027397,2]